fUST/lending_fUST_20260424
["ID","MTS","AMOUNT","RATE_DAILY","PERIOD"]
[421059078,1776963038789,-805.19874931,0.00018124,2]
[421059079,1776963038800,-805.19874931,0.00018124,2]
[421059080,1776963038811,-805.1987493,0.00018124,2]
[421059081,1776963038821,-1476.2194723,0.00018124,2]
[421059082,1776963038833,-1476.2194723,0.00018124,2]
[421059083,1776963038844,-1476.2194723,0.00018124,2]
[421059084,1776963038855,-1476.2194723,0.00018124,2]
[421059085,1776963038864,-1476.2194723,0.00018124,2]
[421059086,1776963038874,-1476.2194723,0.00018124,2]
[421059087,1776963038885,-1476.2194723,0.00018124,2]
[421059088,1776963038897,-1476.2194723,0.00018124,2]
[421059089,1776963038908,-22100.84167745,0.00018125,2]
[421059090,1776963038919,-244938.82814234,0.00018125,2]
[421059091,1776963039283,-335.56791417,0.00018125,2]
[421059092,1776963039294,-2849.8060003,0.00018125,2]
[421059093,1776963039305,-503.8814169,0.00018125,2]
[421059095,1776963040268,-5180.09590182,0.00018125,2]
[421059100,1776963043012,-588006.20532833,0.00018125,2]
[421059101,1776963043022,-150.0,0.00018125,2]
[421059102,1776963043032,-322.0,0.00018138,2]
[421059103,1776963043041,-10000.05583174,0.00018224,2]
[421059104,1776963043050,-500.0,0.00018225,2]
[421059105,1776963043060,-500.0,0.00018225,2]
[421059106,1776963043069,-500.0,0.00018225,2]
[421059107,1776963043078,-151.5,0.00018225,2]
[421059108,1776963043087,-500.0,0.00018225,2]
[421059109,1776963043097,-500.0,0.00018225,2]
[421059110,1776963043107,-500.0,0.00018225,2]
[421059111,1776963043116,-500.0,0.00018225,2]
[421059112,1776963043126,-500.0,0.00018225,2]
[421059113,1776963043135,-151.5,0.00018225,2]
[421059114,1776963043144,-500.0,0.00018225,2]
[421059115,1776963043154,-400.02141268,0.00018225,2]
[421059116,1776963043164,-241.24685479,0.00018225,2]
[421059118,1776963043173,-500.0,0.00018225,2]
[421059120,1776963043183,-500.0,0.00018225,2]
[421059121,1776963043192,-500.0,0.00018225,2]
[421059123,1776963043202,-500.0,0.00018225,2]
[421059124,1776963043211,-500.0,0.00018225,2]
[421059125,1776963043220,-500.0,0.00018225,2]
[421059126,1776963043229,-500.0,0.00018225,2]
[421059127,1776963043238,-500.0,0.00018225,2]
[421059128,1776963043247,-500.0,0.00018225,2]
[421059129,1776963043256,-500.0,0.00018225,2]
[421059130,1776963043265,-500.0,0.00018225,2]
[421059131,1776963043275,-504.53920386,0.00018225,2]
[421059132,1776963043285,-1195.0,0.00018225,2]
[421059133,1776963043294,-369.84106105,0.00018225,2]
[421059134,1776963043304,-1195.0,0.00018225,2]
[421059135,1776963043314,-1195.0,0.00018225,2]
[421059136,1776963043324,-1195.0,0.00018225,2]
[421059138,1776963043334,-1195.0,0.00018225,2]
[421059139,1776963043343,-1195.0,0.00018225,2]
[421059140,1776963043353,-151.5,0.00018225,2]
[421059141,1776963043363,-1195.0,0.00018225,2]
[421059142,1776963043372,-151.5,0.00018225,2]
[421059143,1776963043382,-1195.0,0.00018225,2]
[421059144,1776963043392,-151.5,0.00018225,2]
[421059145,1776963043402,-151.5,0.00018225,2]
[421059146,1776963043411,-1195.0,0.00018225,2]
[421059147,1776963043421,-294.0,0.00018225,2]
[421059148,1776963043430,-1195.0,0.00018225,2]
[421059149,1776963043441,-1195.0,0.00018225,2]
[421059150,1776963043450,-1195.0,0.00018225,2]
[421059151,1776963043461,-1195.0,0.00018225,2]
[421059152,1776963043470,-1195.0,0.00018225,2]
[421059153,1776963043480,-1195.0,0.00018225,2]
[421059155,1776963043489,-1195.0,0.00018225,2]
[421059156,1776963043499,-1195.0,0.00018225,2]
[421059157,1776963043509,-1195.0,0.00018225,2]
[421059158,1776963043519,-1195.0,0.00018225,2]
[421059159,1776963043529,-1195.0,0.00018225,2]
[421059160,1776963043538,-1195.0,0.00018225,2]
[421059161,1776963043548,-1195.0,0.00018225,2]
[421059162,1776963043557,-1195.0,0.00018225,2]
[421059163,1776963043567,-1208.43009079,0.00018225,2]
[421059164,1776963043576,-738.75,0.00018298,2]
[421059165,1776963043586,-738.75,0.00018298,2]
[421059166,1776963043596,-738.75,0.00018298,2]
[421059167,1776963043606,-738.75,0.00018298,2]
[421059168,1776963043616,-738.75,0.00018298,2]
[421059169,1776963043625,-738.75,0.00018298,2]
[421059170,1776963043635,-738.75,0.00018298,2]
[421059171,1776963043644,-738.75,0.00018298,2]
[421059172,1776963043654,-738.75,0.00018298,2]
[421059173,1776963043663,-738.75,0.00018298,2]
[421059174,1776963043672,-738.75,0.00018298,2]
[421059175,1776963043682,-738.75,0.00018298,2]
[421059176,1776963043692,-738.75,0.00018298,2]
[421059177,1776963043701,-738.75,0.00018298,2]
[421059178,1776963043710,-738.75,0.00018298,2]
[421059179,1776963043720,-738.75,0.00018298,2]
[421059180,1776963043729,-738.75,0.00018298,2]
[421059181,1776963043738,-738.75,0.00018298,2]
[421059182,1776963043748,-738.75,0.00018298,2]
[421059183,1776963043757,-738.75,0.00018298,2]
[421059184,1776963043766,-738.75,0.00018298,2]
[421059185,1776963043776,-738.75,0.00018298,2]
[421059186,1776963043785,-738.75,0.00018298,2]
[421059187,1776963043795,-738.75,0.00018298,2]
[421059188,1776963043804,-738.75,0.00018298,2]
[421059189,1776963043813,-738.75,0.00018298,2]
[421059190,1776963043822,-738.75,0.00018298,2]
[421059191,1776963043832,-738.75,0.00018298,2]
[421059192,1776963043841,-738.75,0.00018298,2]
[421059193,1776963043850,-738.75,0.00018298,2]
[421059194,1776963043859,-738.75,0.00018298,2]
[421059195,1776963043868,-738.75,0.00018298,2]
[421059196,1776963043877,-744.54,0.00018298,2]
[421059197,1776963043887,-32123.40903274,0.00018298,2]
[421059198,1776963043896,-6223.94171437,0.000183,2]
[421059199,1776963043905,-1595.64986283,0.000183,2]
[421059200,1776963043914,-194.56988257,0.00018324,2]
[421059201,1776963043923,-153.33570412,0.00018324,2]
[421059202,1776963043932,-445.202766,0.00018324,2]
[421059203,1776963043941,-537.6845,0.00018324,2]
[421059204,1776963043950,-537.6845,0.00018324,2]
[421059205,1776963043960,-2150.738,0.00018324,2]
[421059206,1776963043969,-118511.0269864,0.0001835,5]
[421059207,1776963043979,-377.0,0.0001835,2]
[421059208,1776963043988,-160.0,0.00018351,2]
[421059209,1776963043997,-557.5788265,0.00018379,2]
[421059210,1776963044007,-578.20924308,0.00018434,2]
[421059211,1776963044016,-160.0659144,0.00018471,2]
[421059212,1776963044025,-2062.8929015,0.00018471,2]
[421059213,1776963044034,-599.60298507,0.00018489,2]
[421059214,1776963044043,-500.0,0.00018499,2]
[421059215,1776963044052,-1775.8367103,0.00018499,2]
[421059216,1776963044061,-383.7762993,0.00018499,2]
[421059217,1776963044071,-6223.94171437,0.000185,2]
[421059218,1776963044080,-1595.64986283,0.000185,2]
[421059219,1776963044089,-300.0,0.0001851,2]
[421059220,1776963044098,-621.78829552,0.00018544,2]
[421059221,1776963044107,-644.79446246,0.00018599,2]
[421059222,1776963044118,-668.65185757,0.00018654,2]
[421059223,1776963044127,-300.0,0.00018665,2]
[421059224,1776963044137,-300.0,0.00018665,2]
[421059225,1776963044146,-300.0,0.00018665,2]
[421059226,1776963044156,-300.0,0.00018665,2]
[421059227,1776963044166,-300.0,0.00018665,2]
[421059228,1776963044175,-300.0,0.00018665,2]
[421059229,1776963044184,-300.0,0.00018665,2]
[421059230,1776963044194,-300.0,0.00018665,2]
[421059231,1776963044203,-300.0,0.00018665,2]
[421059232,1776963044213,-300.0,0.00018665,2]
[421059233,1776963044224,-300.0,0.00018665,2]
[421059234,1776963044234,-300.0,0.00018665,2]
[421059235,1776963044244,-300.0,0.00018665,2]
[421059236,1776963044255,-300.0,0.00018665,2]
[421059237,1776963044265,-300.0,0.00018665,2]
[421059238,1776963044276,-6223.94171437,0.000187,2]
[421059239,1776963044285,-1595.64986283,0.000187,2]
[421059240,1776963044295,-693.3919763,0.00018709,2]
[421059241,1776963044307,-151.6296512,0.0001876,2]
[421059242,1776963044316,-325.229784,0.0001876,2]
[421059243,1776963044325,-719.04747942,0.00018764,2]
[421059244,1776963044335,-600.0,0.00018783,2]
[421059245,1776963044344,-745.65223616,0.00018819,2]
[421059246,1776963044353,-151.0,0.00018825,2]
[421059247,1776963044363,-461.67526834,0.00018872,2]
[421059248,1776963044373,-557.5788265,0.00018872,2]
[421059249,1776963044382,-2230.315306,0.00018872,2]
[421059250,1776963044391,-773.2413689,0.00018874,2]
[421059251,1776963044401,-6223.94171437,0.000189,2]
[421059252,1776963044410,-1595.64986283,0.000189,2]
[421059253,1776963044419,-801.85129955,0.00018929,2]
[421059254,1776963044428,-831.51979763,0.00018984,2]
[421059255,1776963044438,-249.0,0.00019,2]
[421059256,1776963044448,-457.0,0.00019,2]
[421059257,1776963044457,-294.0,0.00019,2]
[421059258,1776963044467,-1503.0,0.00019,2]
[421059259,1776963044477,-862.28603014,0.00019039,2]
[421059260,1776963044486,-894.19061326,0.00019094,2]
[421059261,1776963044496,-500.0,0.000191,2]
[421059262,1776963044505,-6223.94171437,0.000191,2]
[421059263,1776963044514,-1595.64986283,0.000191,2]
[421059264,1776963044524,-927.27566595,0.00019149,2]
[421059265,1776963044533,-299.0,0.00019151,2]
[421059266,1776963044542,-299.0,0.00019151,2]
[421059267,1776963044552,-299.0,0.00019151,2]
[421059268,1776963044561,-299.0,0.00019151,2]
[421059269,1776963044570,-299.0,0.00019151,2]
[421059270,1776963044580,-299.0,0.00019151,2]
[421059271,1776963044589,-300.0,0.00019178,2]
[421059272,1776963044599,-1191.0,0.00019178,2]
[421059273,1776963044608,-961.58486559,0.00019204,2]
[421059274,1776963044617,-172.0,0.0001926,3]
[421059275,1776963044626,-21100.01300565,0.000193,2]
[421059276,1776963044636,-4932.49623411,0.000193,2]
[421059305,1776963046235,-7839.97765329,0.000193,2]
[421059341,1776964145708,-300.0,0.00010999,2]
[421059342,1776964145731,-1200.0,0.00010999,2]
[421059343,1776964145752,-574.0,0.00010999,2]
[421059344,1776964145775,-300.0,0.00010999,2]
[421059345,1776964145798,-150.0,0.00010999,2]
[421059346,1776964145820,-4300.15533553,0.00011,2]
[421059347,1776964145841,-12842.51680074,0.00011,2]
[421059348,1776964145865,-300.0,0.00011219,2]
[421059349,1776964145889,-300.0,0.00011219,2]
[421059350,1776964145913,-300.0,0.00011219,2]
[421059351,1776964145937,-300.0,0.00011219,2]
[421059352,1776964145960,-300.0,0.00011219,2]
[421059353,1776964145985,-300.0,0.00011219,2]
[421059354,1776964146010,-300.0,0.00011219,2]
[421059355,1776964146034,-300.0,0.00011219,2]
[421059356,1776964146057,-300.0,0.00011219,2]
[421059357,1776964146080,-300.0,0.00011219,2]
[421059358,1776964146104,-300.0,0.00011219,2]
[421059359,1776964146128,-300.0,0.00011219,2]
[421059360,1776964146151,-300.0,0.00011219,2]
[421059361,1776964146176,-300.0,0.00011219,2]
[421059362,1776964146199,-300.0,0.00011219,2]
[421059363,1776964146224,-600.0,0.00011219,2]
[421059364,1776964146257,-420.0,0.00012087,2]
[421059365,1776964146292,-171.0,0.00012099,2]
[421059366,1776964146331,-720.0,0.00012341,2]
[421059367,1776964146370,-177.0,0.00013,2]
[421059368,1776964146405,-587.0,0.00013282,2]
[421059369,1776964146439,-864.0,0.00013575,2]
[421059370,1776964146473,-1000.0,0.00013699,2]
[421059371,1776964146506,-250.0,0.00013876,2]
[421059372,1776964146537,-185.0,0.00014595,2]
[421059373,1776964146571,-1000.0,0.00014932,2]
[421059374,1776964146606,-204.0,0.00015,2]
[421059375,1776964146637,-13762.3139758,0.00015,2]
[421059376,1776964149106,-188.90699365,0.00015,2]
[421059378,1776964155134,-94572.76366554,0.00015,2]
[421059379,1776964155165,-150.0,0.00015713,2]
[421059380,1776964155197,-1000.0,0.00016426,2]
[421059381,1776964155227,-244.0,0.00016426,2]
[421059382,1776964155254,-14207.46824,0.00017,2]
[421059719,1776964238824,-165.76821266,0.00014999,2]
[421059721,1776964238834,-636.0,0.00014999,2]
[421059722,1776964238844,-465.05355375,0.00016999,2]
[421059723,1776964238854,-2648.32941125,0.00017,2]
[421059724,1776964238864,-2517.42685016,0.00017,2]
[421059725,1776964238875,-2470.03216515,0.00017,2]
[421059726,1776964238887,-6685.11769443,0.00017,2]
[421059737,1776964240598,-7200.16123348,0.00017,2]
[421059738,1776964240609,-5000.0,0.00017,2]
[421059739,1776964240618,-300.0,0.00017339,2]
[421059740,1776964240628,-300.0,0.00017339,2]
[421059741,1776964240637,-300.0,0.00017339,2]
[421059742,1776964240646,-300.0,0.00017339,2]
[421059743,1776964240656,-300.0,0.00017339,2]
[421059744,1776964240665,-300.0,0.00017339,2]
[421059745,1776964240675,-300.0,0.00017339,2]
[421059746,1776964240684,-300.0,0.00017339,2]
[421059747,1776964240700,-300.0,0.00017339,2]
[421059748,1776964240709,-300.0,0.00017339,2]
[421059749,1776964240719,-300.0,0.00017339,2]
[421059750,1776964240728,-300.0,0.00017339,2]
[421059751,1776964240737,-300.0,0.00017339,2]
[421059752,1776964240747,-300.0,0.00017339,2]
[421059753,1776964240756,-300.0,0.00017339,2]
[421059754,1776964240766,-600.0,0.00017339,2]
[421059755,1776964240775,-21280.9522612,0.00017587,2]
[421059772,1776964243228,-878.91953977,0.00017239,2]
[421059788,1776964246665,-1665.58197141,0.00017239,2]
[421059789,1776964246675,-6228.0393191,0.00017587,2]
[421059806,1776964988777,25077.17,0.00011,30]
[421059813,1776965248102,-300.0,0.00013155,2]
[421059814,1776965248124,-607.0,0.00013155,2]
[421059815,1776965248147,-1116.60834112,0.00013156,2]
[421059816,1776965248176,-1366.75131635,0.00013156,2]
[421059817,1776965250086,-220.57467191,0.00013156,2]
[421059820,1776965345121,-174.52597625,0.00013024,2]
[421059822,1776965368131,-1461.32499179,0.00013024,2]
[421059823,1776965371090,-695.28975536,0.00013024,2]
[421059824,1776965371112,-150.0,0.0001329,2]
[421059825,1776965371132,-262.3,0.000135,2]
[421059826,1776965371154,-171.48036362,0.00013699,2]
[421059864,1776965432418,-828.51963638,0.00013699,2]
[421059867,1776965432428,-615.0,0.00013699,2]
[421059869,1776965432438,-174.87,0.000137,2]
[421059870,1776965432446,-300.0,0.00013831,2]
[421059872,1776965432456,-1200.0,0.00013831,2]
[421059874,1776965432465,-300.0,0.00013832,2]
[421059876,1776965432474,-300.0,0.00013832,2]
[421059878,1776965432483,-300.0,0.00013832,2]
[421059880,1776965432492,-300.0,0.00013832,2]
[421059882,1776965432502,-140.31241186,0.00013832,2]
[421059885,1776965432516,-159.68758814,0.00013832,2]
[421059886,1776965432525,-300.0,0.00013832,2]
[421059888,1776965432534,-300.0,0.00013832,2]
[421059891,1776965432543,-300.0,0.00013832,2]
[421059894,1776965432552,-300.0,0.00013832,2]
[421059897,1776965432561,-300.0,0.00013832,2]
[421059900,1776965432571,-300.0,0.00013832,2]
[421059902,1776965432580,-300.0,0.00013832,2]
[421059904,1776965432589,-1.16950194,0.00013832,2]
[421059943,1776965438477,-150.0,0.000137,2]
[421059945,1776965438487,-298.83049806,0.00013832,2]
[421059947,1776965438496,-300.0,0.00013832,2]
[421059949,1776965438506,-300.0,0.00013832,2]
[421059951,1776965438516,-614.72805461,0.00013832,2]
[421059954,1776965438527,-758.51662734,0.00013832,2]
[421059956,1776965438536,-600.0,0.00014108,2]
[421059957,1776965438545,-444.0,0.00014108,2]
[421059959,1776965438554,-305.84371213,0.00014108,2]
[421059962,1776965438566,-138.15628787,0.00014108,2]
[421059964,1776965438575,-700.0,0.00014108,2]
[421059966,1776965438584,-152.0,0.00014574,7]
[421059967,1776965438593,-555.0,0.00014715,2]
[421059969,1776965438602,-731.13191203,0.00014715,2]
[421060003,1776965438923,-151.86125737,0.00014715,2]
[421060044,1776965440827,-116.0068306,0.00014715,2]
[421060045,1776965440837,-108.83854064,0.00014715,2]
[421060074,1776965447091,-779.16145936,0.00014715,2]
[421060075,1776965447101,-666.0,0.00014766,2]
[421060076,1776965447111,-58.03672474,0.00014766,2]
[421060102,1776966399104,-157.68718564,0.00013562,2]
[421060103,1776966399124,-13.33913717,0.00013562,2]
[421060104,1776966453099,-150.0,0.00013631,2]
[421060105,1776966453122,-17.72926948,0.00013631,2]
[421060108,1776966553118,-351.31594055,0.00012,2]
[421060109,1776966553140,-351.31594055,0.00012295,2]
[421060110,1776966553162,-351.31594055,0.0001259,2]
[421060111,1776966553183,-351.31594055,0.00012885,7]
[421060112,1776966553205,-351.31594055,0.0001318,7]
[421060113,1776966553226,-212.79467049,0.00013475,7]
[421060114,1776966564115,-138.52127006,0.00013475,7]
[421060115,1776966564137,-1000.0,0.00013699,2]
[421060116,1776966564159,-615.0,0.00013699,2]
[421060117,1776966564180,-351.31594055,0.0001377,7]
[421060118,1776966564203,-1648.7199414,0.00013775,2]
[421060119,1776966564223,-184.7296923,0.00013775,2]
[421060120,1776966564245,-351.31594055,0.00014065,7]
[421060121,1776966564266,-300.0,0.00014359,2]
[421060122,1776966564289,-351.31594055,0.0001436,7]
[421060123,1776966564315,-300.0,0.00014646,2]
[421060124,1776966564339,-300.0,0.00014646,2]
[421060125,1776966564365,-300.0,0.00014646,2]
[421060126,1776966564388,-300.0,0.00014646,2]
[421060127,1776966564413,-300.0,0.00014646,2]
[421060128,1776966564437,-300.0,0.00014646,2]
[421060129,1776966564460,-300.0,0.00014646,2]
[421060130,1776966564483,-300.0,0.00014646,2]
[421060131,1776966564505,-300.0,0.00014646,2]
[421060132,1776966564530,-300.0,0.00014646,2]
[421060133,1776966564554,-300.0,0.00014646,2]
[421060134,1776966564579,-300.0,0.00014646,2]
[421060135,1776966564602,-300.0,0.00014646,2]
[421060136,1776966564625,-300.0,0.00014646,2]
[421060137,1776966564649,-300.0,0.00014646,2]
[421060138,1776966564670,-351.31594055,0.00014655,14]
[421060139,1776966564690,-496.96327526,0.00014766,2]
[421060140,1776966564712,-351.31594055,0.0001495,14]
[421060141,1776966564733,-351.31594055,0.00015245,14]
[421060142,1776966564756,-300.0,0.00015411,2]
[421060143,1776966564778,-300.0,0.00015411,2]
[421060144,1776966564800,-1200.0,0.00015411,2]
[421060145,1776966564823,-500.54196291,0.00015413,2]
[421060146,1776966564845,-888.0,0.00015414,2]
[421060147,1776966564866,-999.0,0.00015414,2]
[421060148,1776966564888,-777.0,0.00015414,2]
[421060149,1776966564909,-205.15285651,0.00015414,2]
[421060150,1776966564935,-351.31594055,0.0001554,14]
[421060151,1776966564961,-1648.7199414,0.00015589,2]
[421060152,1776966564983,-177.0,0.00015631,2]
[421060153,1776966565008,-600.0,0.00015718,2]
[421060154,1776966565031,-420.0,0.00015725,2]
[421060155,1776966565053,-351.31594055,0.00015835,14]
[421060156,1776966565076,-351.31594055,0.0001613,14]
[421060157,1776966565096,-325.3724333,0.00016265,2]
[421060158,1776966565116,-325.3138637,0.00016265,2]
[421060159,1776966565136,-151.0,0.00016265,2]
[421060160,1776966565158,-455.701244,0.00016265,2]
[421060161,1776966565180,-351.31594055,0.00016425,30]
[421060162,1776966565202,-89.70287676,0.00016438,2]
[421060181,1776966632584,-542.57712324,0.00016438,2]
[421060182,1776966632594,-659.0,0.00016438,2]
[421060183,1776966632604,-779.12310873,0.0001657,2]
[421060184,1776966632614,-351.31594055,0.0001672,30]
[421060185,1776966632624,-2220.1884172,0.0001677,2]
[421060186,1776966632634,-2940.72107144,0.0001697,2]
[421060187,1776966632644,-184.7296923,0.00016997,2]
[421060188,1776966632654,-351.31594055,0.00017015,30]
[421060189,1776966632664,-1143.02870601,0.0001707,2]
[421060190,1776966632676,-1444.83478081,0.0001707,2]
[421060230,1776966641061,-417.44670213,0.0001707,2]
[421060231,1776966641072,-151.0,0.00017079,2]
[421060232,1776966641083,-325.3967881,0.00017079,2]
[421060233,1776966641094,-3467.56937939,0.0001717,2]
[421060234,1776966641104,-351.31594055,0.00017309,30]
[421060235,1776966641115,-3929.82856984,0.0001737,2]
[421060236,1776966641125,-1648.7199414,0.00017404,2]
[421060237,1776966641135,-300.0,0.00017529,2]
[421060238,1776966641145,-958.72267859,0.0001753,2]
[421060239,1776966641165,-670.0,0.0001707,2]
[421060240,1776966641176,-1287.94833849,0.0001753,2]
[421060241,1776966641187,-3703.63945774,0.0001757,2]
[421060242,1776966641200,-688.44830254,0.0001757,2]
[421060243,1776966641211,-351.31594055,0.00017604,30]
[421060244,1776966641223,-204.0,0.00017631,2]
[421060245,1776966641234,-4854.34695073,0.0001767,2]
[421060246,1776966641244,-4896.98974423,0.0001777,2]
[421060247,1776966641256,-500.0,0.00017799,2]
[421060248,1776966641266,-191.95192337,0.00017799,2]
[421060249,1776966641277,-500.0,0.00017799,2]
[421060250,1776966641287,-500.0,0.00017799,2]
[421060251,1776966641298,-500.0,0.00017799,2]
[421060252,1776966641309,-500.0,0.00017799,2]
[421060253,1776966641321,-500.0,0.00017799,2]
[421060254,1776966641332,-500.0,0.00017799,2]
[421060255,1776966641342,-216.10513454,0.00017799,2]
[421060256,1776966641352,-500.0,0.00017799,2]
[421060257,1776966641362,-374.89373106,0.00017799,2]
[421060258,1776966641372,-483.79184666,0.00017799,2]
[421060259,1776966641383,-500.0,0.00017799,2]
[421060260,1776966641396,-11123.00681015,0.000178,2]
[421060261,1776966641407,-18115.14961597,0.000178,2]
[421060262,1776966641421,-1644.42444355,0.000178,2]
[421060264,1776966641434,-904.47157457,0.000178,2]
[421060265,1776966641447,-27625.36308464,0.000178,2]
[421060266,1776966641460,-6734.88746566,0.000178,2]
[421060267,1776966641472,-8813.84970773,0.000178,2]
[421060268,1776966641486,-2397.14922433,0.000178,2]
[421060269,1776966641499,-6931.04040162,0.000178,2]
[421060270,1776966641561,-5471.98533735,0.000178,2]
[421060271,1776966641572,-300.0,0.0001788,2]
[421060272,1776966641585,-300.0,0.0001788,2]
[421060273,1776966641596,-300.0,0.0001788,2]
[421060274,1776966641608,-300.0,0.0001788,2]
[421060275,1776966641619,-138.11547972,0.0001788,2]
[421060276,1776966641688,-161.88452028,0.0001788,2]
[421060277,1776966641699,-300.0,0.0001788,2]
[421060278,1776966641711,-300.0,0.0001788,2]
[421060279,1776966641722,-300.0,0.0001788,2]
[421060280,1776966641732,-300.0,0.0001788,2]
[421060281,1776966641743,-300.0,0.0001788,2]
[421060282,1776966641753,-300.0,0.0001788,2]
[421060283,1776966641766,-300.0,0.0001788,2]
[421060284,1776966641780,-300.0,0.0001788,2]
[421060285,1776966641791,-300.0,0.0001788,2]
[421060286,1776966641800,-300.0,0.0001788,2]
[421060287,1776966641810,-500.0,0.00017882,2]
[421060288,1776966641820,-14.2489793,0.00017882,2]
[421060290,1776966641832,-485.7510207,0.00017882,2]
[421060291,1776966641842,-500.0,0.00017882,2]
[421060292,1776966641852,-86.09886375,0.00017882,2]
[421060318,1776966643832,-70.47701864,0.00017882,2]
[421060319,1776966643842,-835.42872073,0.00017897,2]
[421060320,1776966643853,-325.53748763,0.00017897,2]
[421060321,1776966643864,-835.42872073,0.00017897,2]
[421060322,1776966643875,-835.42872073,0.00017897,2]
[421060323,1776966643887,-835.42872073,0.00017897,2]
[421060324,1776966643897,-835.42872073,0.00017897,2]
[421060325,1776966643906,-835.42872073,0.00017897,2]
[421060326,1776966643917,-835.42872073,0.00017897,2]
[421060327,1776966643927,-835.42872073,0.00017897,2]
[421060328,1776966643938,-835.42872073,0.00017897,2]
[421060329,1776966643948,-835.42872073,0.00017897,2]
[421060330,1776966643958,-835.42872073,0.00017897,2]
[421060331,1776966643968,-835.42872073,0.00017897,2]
[421060332,1776966643978,-835.42872073,0.00017897,2]
[421060333,1776966643988,-835.42872073,0.00017897,2]
[421060334,1776966643998,-835.42872073,0.00017897,2]
[421060336,1776966644008,-835.42872073,0.00017897,2]
[421060338,1776966644018,-835.42872073,0.00017897,2]
[421060340,1776966644026,-835.42872073,0.00017897,2]
[421060342,1776966644035,-835.42872073,0.00017897,2]
[421060344,1776966644043,-500.0,0.00017898,2]
[421060345,1776966644053,-5000.0,0.00017899,2]
[421060348,1776966644062,-351.31594055,0.00017899,30]
[421060349,1776966644072,-23879.52385931,0.000179,2]
[421060352,1776966644088,-284407.5717609,0.000179,2]
[421060354,1776966644099,-740.14419598,0.000179,2]
[421060356,1776966644110,-3853.01913016,0.000179,2]
[421060363,1776966649628,-7840.99416431,0.000179,2]
[421060364,1776966649639,-7700.0,0.000179,2]
[421060365,1776966649651,-304.7,0.000179,2]
[421060366,1776966649662,-3083.2,0.000179,2]
[421060376,1776967419474,-527.0,7.599e-05,2]
[421060377,1776967419496,-300.0,7.599e-05,2]
[421060378,1776967419519,-150.0,7.6e-05,2]
[421060379,1776967419539,-18090.65703318,7.6e-05,2]
[421060380,1776967419560,-420.0,8.359e-05,2]
[421060381,1776967419580,-252.22185606,9.155e-05,2]
[421060382,1776967419602,-587.0,9.195e-05,2]
[421060383,1776967419623,-177.0,9.6e-05,2]
[421060384,1776967419643,-419.91550361,0.0001,2]
[421060385,1776967419663,-2800.07363452,0.0001,2]
[421060386,1776967419683,-341.14311298,0.0001,2]
[421060387,1776967419977,-823.0,0.00010114,2]
[421060388,1776967420000,-1152.0,0.00011126,2]
[421060389,1776967420026,-204.0,0.000116,2]
[421060393,1776967430722,-351.0,0.00012238,2]
[421060399,1776967751134,-2000.0,0.000119,2]
[421060400,1776967751160,-150.0,0.00012682,2]
[421060401,1776967751182,-31.48,0.00013463,2]
[421060402,1776967761086,-588.0,0.000119,2]
[421060403,1776967761108,-268.52,0.00013463,2]
[421060404,1776967761133,-248.39764534,0.00013464,2]
[421060405,1776967764127,-1655.73839223,0.00013464,2]
[421060406,1776967771116,-2934.44609954,0.00013464,2]
[421060407,1776967771140,-1000.0,0.00013699,2]
[421060408,1776967771167,-300.0,0.00013732,2]
[421060409,1776967771196,-300.0,0.00013732,2]
[421060410,1776967771227,-300.0,0.00013732,2]